[Event "LAT-ch 2020"]
[Site "Riga"]
[Date "2020.08.29"]
[Round "7.3"]
[White "Kantans, Toms"]
[Black "Starostits, Ilmars"]
[Result "1-0"]
[ECO "B33"]
[WhiteElo "2499"]
[BlackElo "2484"]
[Annotator "ChessBase"]
[PlyCount "71"]
[EventDate "2020.08.24"]
[EventType "swiss"]
[EventCountry "LAT"]
[SourceTitle "playchess.com"]
[Source "ChessBase"]
[SourceQuality "1"]
[TimeControl "5400+30"]

1. e4 {[%emt 0:02:39]} c5 {[%emt 0:00:00]} 2. Nf3 {[%emt 0:00:12]} Nc6 {[%emt 0:00:00]} 3. d4 {[%emt 0:00:04]} cxd4 {[%emt 0:00:00]} 4. Nxd4 {[%emt 0:00:05]} Qb6 {[%emt 0:00:00]} 5. Nb3 {[%emt 0:00:09]} Nf6 {[%emt 0:00:00]} 6. Nc3 {[%emt 0:00:07]} e6 {[%emt 0:00:00]} 7. Qe2 {[%emt 0:00:36]} Bb4 {[%emt 0:00:06]} 8. Bd2 {[%emt 0:00:06]} a5 {[%emt 0:01:25]} 9. a3 {[%emt 0:05:47]} Bxc3 {[%emt 0:00:05]} 10. Bxc3 {[%emt 0:00:04]} e5 {[%emt 0:00:03]} 11. O-O-O {[%emt 0:07:44]} O-O {[%emt 0:00:05]} 12. g4 {[%emt 0:05:15]} a4 {[%emt 0:00:07]} 13. g5 {[%emt 0:13:40]} Ng4 {[%emt 0:00:14]} 14. Qxg4 {[%emt 0:19:58]} axb3 {[%emt 0:02:39]} 15. Qe2 {[%emt 0:15:43]} bxc2 {[%emt 0:06:22]} 16. Kxc2 {[%emt 0:02:23]} d6 {[%emt 0:05:54]} 17. Rd2 {[%emt 0:00:29]} Bd7 {[%emt 0:07:50]} 18. Qe3 {[%emt 0:00:59]} Qc7 {[%emt 0:07:16]} 19. Kb1 {[%emt 0:01:11]} Be6 {[%emt 0:01:27]} 20. Bb5 {[%emt 0:03:25]} f5 {[%emt 0:04:52]} 21. Rhd1 {[%emt 0:05:06]} fxe4 {[%emt 0:08:13]} 22. Rxd6 {[%emt 0:00:09]} Nd4 {[%emt 0:01:33]} 23. Rxe6 {[%emt 0:00:49]} Nxe6 {[%emt 0:02:53]} 24. Qxe4 {[%emt 0:00:31]} Nd4 {[%emt 0:01:01]} 25. Bd3 {[%emt 0:01:29]} g6 {[%emt 0:01:50]} 26. Re1 {[%emt 0:04:07]} Rae8 {[%emt 0:05:06]} 27. Qd5+ {[%emt 0:02:30]} Rf7 {[%emt 0:16:40]} 28. Bc4 {[%emt 0:05:27]} Nf3 {[%emt 0:00:55]} 29. Re3 {[%emt 0:00:15]} Nxg5 {[%emt 0:00:17]} 30. Rxe5 {[%emt 0:01:21]} Rxe5 {[%emt 0:09:00]} 31. Bxe5 {[%emt 0:00:06]} Qe7 {[%emt 0:03:41]} 32. f4 {[%emt 0:01:03]} Nh3 {[%emt 0:00:04]} 33. Qd3 {[%emt 0:01:04]} Nf2 {[%emt 0:01:49]} 34. Qe2 {[%emt 0:01:08]} Qc5 {[%emt 0:01:33]} 35. b4 {[%emt 0:00:13]} Qa7 {[%emt 0:01:14]} 36. Qd2 {[%emt 0:00:41]} 1-0

[Event "LAT-ch 2020"]
[Site "Riga"]
[Date "2020.08.29"]
[Round "7.4"]
[White "Brikers, Aleksandrs"]
[Black "Jazdanovs, Aleksandrs"]
[Result "0-1"]
[ECO "C55"]
[WhiteElo "2059"]
[BlackElo "2248"]
[Annotator "ChessBase"]
[PlyCount "96"]
[EventDate "2020.08.24"]
[EventType "swiss"]
[EventCountry "LAT"]
[SourceTitle "playchess.com"]
[Source "ChessBase"]
[SourceQuality "1"]
[TimeControl "5400+30"]

1. e4 {[%emt 0:00:00]} e5 {[%emt 0:00:00]} 2. Nf3 {[%emt 0:00:00]} Nc6 {[%emt 0:00:00]} 3. Bc4 {[%emt 0:00:00]} Nf6 {[%emt 0:00:05]} 4. d3 {[%emt 0:01:43]} h6 {[%emt 0:00:32]} 5. O-O {[%emt 0:11:21]} d6 {[%emt 0:00:05]} 6. c3 {[%emt 0:00:48]} g5 {[%emt 0:00:05]} 7. d4 {[%emt 0:19:27]} g4 {[%emt 0:00:47]} 8. dxe5 {[%emt 0:00:24]} gxf3 {[%emt 0:00:24]} 9. exf6 {[%emt 0:00:41]} fxg2 {[%emt 0:03:19]} 10. Re1 {[%emt 0:11:20]} Ne5 {[%emt 0:01:26]} 11. Be2 {[%emt 0:01:39]} Qxf6 {[%emt 0:01:16]} 12. f4 {[%emt 0:03:34]} Ng6 {[%emt 0:00:42]} 13. Qd4 {[%emt 0:10:45]} Qh4 {[%emt 0:00:38]} 14. Qf2 {[%emt 0:00:13]} Be7 {[%emt 0:06:30]} 15. Qg3 {[%emt 0:06:31]} Rg8 {[%emt 0:12:50]} 16. Be3 {[%emt 0:07:11]} Nf8 {[%emt 0:03:25]} 17. Qxh4 {[%emt 0:01:14]} Bxh4 {[%emt 0:00:31]} 18. Rd1 {[%emt 0:04:08]} Bd7 {[%emt 0:04:39]} 19. Nd2 {[%emt 0:01:29]} Bc6 {[%emt 0:03:36]} 20. Bf3 {[%emt 0:02:08]} O-O-O {[%emt 0:00:55]} 21. a4 {[%emt 0:02:17]} Bf6 {[%emt 0:05:01]} 22. Re1 {[%emt 0:03:14]} Ng6 {[%emt 0:00:26]} 23. Re2 {[%emt 0:00:54]} Nh4 {[%emt 0:00:07]} 24. Bd4 {[%emt 0:03:48]} Bxd4+ {[%emt 0:00:22]} 25. cxd4 {[%emt 0:00:01]} Nxf3+ {[%emt 0:00:08]} 26. Nxf3 {[%emt 0:00:07]} f5 {[%emt 0:00:27]} 27. d5 {[%emt 0:03:02]} fxe4 {[%emt 0:00:06]} 28. dxc6 {[%emt 0:00:06]} exf3 {[%emt 0:00:06]} 29. cxb7+ {[%emt 0:00:04]} Kxb7 {[%emt 0:00:05]} 30. Rf2 {[%emt 0:00:34]} Rdf8 {[%emt 0:01:00]} 31. Rxf3 {[%emt 0:00:09]} Rg4 {[%emt 0:00:06]} 32. f5 {[%emt 0:03:08]} Rg5 {[%emt 0:00:03]} 33. f6 {[%emt 0:02:32]} Rg6 {[%emt 0:00:04]} 34. f7 {[%emt 0:00:05]} Rg7 {[%emt 0:00:03]} 35. Re1 {[%emt 0:01:12]} Rfxf7 {[%emt 0:00:19]} 36. Rxf7 {[%emt 0:00:04]} Rxf7 {[%emt 0:00:05]} 37. Kxg2 {[%emt 0:00:26]} Rf6 {[%emt 0:00:14]} 38. Kg3 {[%emt 0:00:55]} d5 {[%emt 0:00:06]} 39. h4 {[%emt 0:01:40]} Kc6 {[%emt 0:00:15]} 40. Rc1+ {[%emt 0:00:33]} Kd6 {[%emt 0:00:07]} 41. b4 {[%emt 0:00:21]} c6 {[%emt 0:00:31]} 42. Kg4 {[%emt 0:00:37]} Ke5 {[%emt 0:00:28]} 43. b5 {[%emt 0:00:31]} cxb5 {[%emt 0:00:07]} 44. axb5 {[%emt 0:00:01]} d4 {[%emt 0:01:02]} 45. Ra1 {[%emt 0:01:01]} d3 {[%emt 0:00:09]} 46. Rxa7 {[%emt 0:00:30]} d2 {[%emt 0:00:05]} 47. Ra1 {[%emt 0:00:09]} Kd4 {[%emt 0:00:07]} 48. Ra8 {[%emt 0:00:49]} d1=Q+ {[%emt 0:00:09]} 0-1

[Event "LAT-ch 2020"]
[Site "Riga"]
[Date "2020.08.29"]
[Round "8.1"]
[White "Jazdanovs, Aleksandrs"]
[Black "Lanka, Zigurds"]
[Result "0-1"]
[ECO "B42"]
[WhiteElo "2248"]
[BlackElo "2391"]
[Annotator "ChessBase"]
[PlyCount "32"]
[EventDate "2020.08.24"]
[EventType "swiss"]
[EventCountry "LAT"]
[SourceTitle "playchess.com"]
[Source "ChessBase"]
[SourceQuality "1"]
[TimeControl "5400+30"]

1. e4 {[%emt 0:06:25]} c5 {[%emt 0:00:00]} 2. Nf3 {[%emt 0:00:13]} e6 {[%emt 0:00:10]} 3. d4 {[%emt 0:00:07]} cxd4 {[%emt 0:00:05]} 4. Nxd4 {[%emt 0:00:05]} a6 {[%emt 0:00:07]} 5. Bd3 {[%emt 0:00:37]} Bc5 {[%emt 0:00:10]} 6. Nb3 {[%emt 0:00:06]} Ba7 {[%emt 0:00:06]} 7. O-O {[%emt 0:01:17]} Nc6 {[%emt 0:00:12]} 8. Qg4 {[%emt 0:01:20]} Nf6 {[%emt 0:00:07]} 9. Qxg7 {[%emt 0:00:14]} Rg8 {[%emt 0:00:05]} 10. Qh6 {[%emt 0:00:11]} d6 {[%emt 0:00:06]} 11. Nc3 {[%emt 0:02:31]} Ne5 {[%emt 0:00:47]} 12. Kh1 {[%emt 0:02:43]} Nfg4 {[%emt 0:01:40]} 13. Qxh7 {[%emt 0:01:21]} Kd7 {[%emt 0:00:18]} 14. Bf4 {[%emt 0:02:18]} Rh8 {[%emt 0:00:41]} 15. Qg7 {[%emt 0:00:10]} Rxh2+ {[%emt 0:00:11]} 16. Bxh2 {[%emt 0:00:28]} Qh4 {[%emt 0:00:07]} 0-1

[Event "LAT-ch 2020"]
[Site "Riga"]
[Date "2020.08.29"]
[Round "8.2"]
[White "Sveshnikov, Vladimir"]
[Black "Kantans, Toms"]
[Result "1-0"]
[ECO "B22"]
[WhiteElo "2426"]
[BlackElo "2499"]
[Annotator "ChessBase"]
[PlyCount "113"]
[EventDate "2020.08.24"]
[EventType "swiss"]
[EventCountry "LAT"]
[SourceTitle "playchess.com"]
[Source "ChessBase"]
[SourceQuality "1"]
[TimeControl "5400+30"]

1. e4 {[%emt 0:00:00]} c5 {[%emt 0:00:00]} 2. c3 {[%emt 0:00:00]} Nf6 {[%emt 0:00:12]} 3. e5 {[%emt 0:00:00]} Nd5 {[%emt 0:00:04]} 4. d4 {[%emt 0:00:08]} cxd4 {[%emt 0:00:40]} 5. Nf3 {[%emt 0:00:06]} Nc6 {[%emt 0:01:04]} 6. Bc4 {[%emt 0:00:04]} Nb6 {[%emt 0:00:32]} 7. Bb3 {[%emt 0:00:05]} d6 {[%emt 0:01:04]} 8. exd6 {[%emt 0:00:03]} Qxd6 {[%emt 0:02:31]} 9. O-O {[%emt 0:00:09]} e6 {[%emt 0:05:11]} 10. cxd4 {[%emt 0:00:43]} Be7 {[%emt 0:00:15]} 11. Nc3 {[%emt 0:00:02]} O-O {[%emt 0:00:08]} 12. Qd3 {[%emt 0:20:27]} Nb4 {[%emt 0:14:37]} 13. Qe4 {[%emt 0:04:59]} N6d5 {[%emt 0:04:11]} 14. Bg5 {[%emt 0:15:18]} h6 {[%emt 0:06:51]} 15. Nxd5 {[%emt 0:14:08]} Nxd5 {[%emt 0:05:32]} 16. Bc2 {[%emt 0:04:05]} f5 {[%emt 0:00:07]} 17. Bxe7 {[%emt 0:00:03]} Nxe7 {[%emt 0:00:12]} 18. Qe5 {[%emt 0:01:54]} Rd8 {[%emt 0:00:07]} 19. Bb3 {[%emt 0:04:39]} Kf8 {[%emt 0:07:42]} 20. Qe2 {[%emt 0:15:38]} Bd7 {[%emt 0:11:17]} 21. Rfe1 {[%emt 0:01:46]} Rac8 {[%emt 0:04:26]} 22. Rad1 {[%emt 0:00:14]} Nd5 {[%emt 0:04:19]} 23. Ne5 {[%emt 0:03:37]} Be8 {[%emt 0:00:21]} 24. Qf3 {[%emt 0:02:17]} Rc7 {[%emt 0:01:58]} 25. Rc1 {[%emt 0:03:45]} Rxc1 {[%emt 0:03:58]} 26. Rxc1 {[%emt 0:00:01]} Qb4 {[%emt 0:00:29]} 27. Rd1 {[%emt 0:01:10]} a5 {[%emt 0:05:43]} 28. Nd3 {[%emt 0:04:15]} Qd6 {[%emt 0:10:41]} 29. a3 {[%emt 0:00:31]} b6 {[%emt 0:00:55]} 30. Ne5 {[%emt 0:00:49]} Nf6 {[%emt 0:04:06]} 31. Qb7 {[%emt 0:00:47]} Rb8 {[%emt 0:01:10]} 32. Qa7 {[%emt 0:00:19]} Rc8 {[%emt 0:00:04]} 33. h3 {[%emt 0:01:36]} Ne4 {[%emt 0:03:02]} 34. Ba4 {[%emt 0:01:02]} Qc7 {[%emt 0:00:40]} 35. Qxc7 {[%emt 0:00:30]} Rxc7 {[%emt 0:00:02]} 36. Bb3 {[%emt 0:02:05]} Ke7 {[%emt 0:00:02]} 37. f3 {[%emt 0:00:34]} Nd6 {[%emt 0:01:21]} 38. a4 {[%emt 0:00:30]} g5 {[%emt 0:01:50]} 39. Re1 {[%emt 0:00:17]} Kf6 {[%emt 0:01:35]} 40. Kf2 {[%emt 0:00:46]} b5 {[%emt 0:00:28]} 41. Nd3 {[%emt 0:00:19]} Bf7 {[%emt 0:00:29]} 42. Nc5 {[%emt 0:00:03]} bxa4 {[%emt 0:00:11]} 43. Bxe6 {[%emt 0:00:15]} Nb5 {[%emt 0:00:39]} 44. Bxf7 {[%emt 0:01:05]} Kxf7 {[%emt 0:00:02]} 45. Nxa4 {[%emt 0:00:40]} Nxd4 {[%emt 0:00:24]} 46. Nc3 {[%emt 0:00:31]} Rb7 {[%emt 0:00:04]} 47. Nd1 {[%emt 0:00:11]} f4 {[%emt 0:00:49]} 48. Re5 {[%emt 0:00:56]} a4 {[%emt 0:01:07]} 49. Re4 {[%emt 0:00:36]} Rd7 {[%emt 0:00:37]} 50. Nc3 {[%emt 0:00:09]} Nf5 {[%emt 0:00:09]} 51. Nxa4 {[%emt 0:00:42]} Ne3 {[%emt 0:00:58]} 52. Nc3 {[%emt 0:00:26]} Rd2+ {[%emt 0:00:18]} 53. Ne2 {[%emt 0:00:01]} Rxb2 {[%emt 0:00:09]} 54. g3 {[%emt 0:00:48]} Nd5 {[%emt 0:00:38]} 55. gxf4 {[%emt 0:00:32]} Nxf4 {[%emt 0:00:56]} 56. h4 {[%emt 0:00:09]} gxh4 {[%emt 0:00:32]} 57. Rxf4+ {[%emt 0:00:05]} 1-0

[Event "LAT-ch 2020"]
[Site "Riga"]
[Date "2020.08.29"]
[Round "8.3"]
[White "Semjonovs, Ilja"]
[Black "Golubovskis, Maksims"]
[Result "1/2-1/2"]
[ECO "B90"]
[WhiteElo "2368"]
[BlackElo "2234"]
[Annotator "ChessBase"]
[PlyCount "45"]
[EventDate "2020.08.24"]
[EventType "swiss"]
[EventCountry "LAT"]
[SourceTitle "playchess.com"]
[Source "ChessBase"]
[SourceQuality "1"]
[TimeControl "5400+30"]

1. e4 {[%emt 0:24:52]} c5 {[%emt 0:00:00]} 2. Nf3 {[%emt 0:00:03]} d6 {[%emt 0:00:14]} 3. d4 {[%emt 0:03:39]} cxd4 {[%emt 0:00:09]} 4. Nxd4 {[%emt 0:00:06]} Nf6 {[%emt 0:00:10]} 5. Nc3 {[%emt 0:00:18]} a6 {[%emt 0:00:51]} 6. f3 {[%emt 0:00:56]} e5 {[%emt 0:00:27]} 7. Nb3 {[%emt 0:00:07]} Be7 {[%emt 0:00:11]} 8. Be3 {[%emt 0:01:47]} Be6 {[%emt 0:08:21]} 9. Qd2 {[%emt 0:01:06]} Nbd7 {[%emt 0:01:59]} 10. g4 {[%emt 0:03:20]} Rc8 {[%emt 0:02:23]} 11. g5 {[%emt 0:04:04]} Nh5 {[%emt 0:00:17]} 12. O-O-O {[%emt 0:00:34]} b5 {[%emt 0:06:09]} 13. Kb1 {[%emt 0:11:20]} Nb6 {[%emt 0:08:28]} 14. Qf2 {[%emt 0:11:02]} Nc4 {[%emt 0:10:19]} 15. Bxc4 {[%emt 0:01:18]} bxc4 {[%emt 0:02:29]} 16. Bb6 {[%emt 0:01:32]} Qd7 {[%emt 0:00:07]} 17. Nc5 {[%emt 0:00:23]} Qc6 {[%emt 0:01:27]} 18. Nxa6 {[%emt 0:00:40]} Qb7 {[%emt 0:03:41]} 19. Nb4 {[%emt 0:04:06]} Rb8 {[%emt 0:01:00]} 20. Ncd5 {[%emt 0:02:27]} Bxd5 {[%emt 0:00:35]} 21. Nxd5 {[%emt 0:00:14]} Bd8 {[%emt 0:00:21]} 22. Bd4 {[%emt 0:02:43]} exd4 {[%emt 0:00:23]} 23. Qxd4 {[%emt 0:00:07]} 1/2-1/2

[Event "LAT-ch 2020"]
[Site "Riga"]
[Date "2020.08.29"]
[Round "8.4"]
[White "Jankovskis, Guntis"]
[Black "Berzinsh, Roland"]
[Result "1-0"]
[ECO "D02"]
[WhiteElo "2256"]
[BlackElo "2378"]
[Annotator "ChessBase"]
[PlyCount "41"]
[EventDate "2020.08.24"]
[EventType "swiss"]
[EventCountry "LAT"]
[SourceTitle "playchess.com"]
[Source "ChessBase"]
[SourceQuality "1"]
[TimeControl "5400+30"]

1. Nf3 {[%emt 0:00:00]} d5 {[%emt 0:00:00]} 2. d4 {[%emt 0:00:00]} Nf6 {[%emt 0:00:12]} 3. g3 {[%emt 0:00:08]} c5 {[%emt 0:00:12]} 4. Bg2 {[%emt 0:00:14]} cxd4 {[%emt 0:00:08]} 5. O-O {[%emt 0:00:27]} h6 {[%emt 0:01:24]} 6. b3 {[%emt 0:03:46]} e6 {[%emt 0:03:42]} 7. Bb2 {[%emt 0:00:21]} Bc5 {[%emt 0:01:54]} 8. Nxd4 {[%emt 0:01:53]} Qb6 {[%emt 0:00:21]} 9. e3 {[%emt 0:02:06]} O-O {[%emt 0:05:19]} 10. c4 {[%emt 0:00:41]} e5 {[%emt 0:08:13]} 11. Nf3 {[%emt 0:00:29]} e4 {[%emt 0:00:18]} 12. Nd4 {[%emt 0:01:03]} Bg4 {[%emt 0:08:13]} 13. Qc2 {[%emt 0:03:59]} dxc4 {[%emt 0:00:17]} 14. bxc4 {[%emt 0:03:17]} Nbd7 {[%emt 0:10:58]} 15. Nd2 {[%emt 0:00:52]} Rfe8 {[%emt 0:00:32]} 16. Nxe4 {[%emt 0:04:50]} Nxe4 {[%emt 0:03:07]} 17. Bxe4 {[%emt 0:00:13]} Bh3 {[%emt 0:00:21]} 18. Rfb1 {[%emt 0:18:32]} Rab8 {[%emt 0:08:27]} 19. Bh7+ {[%emt 0:02:59]} Kf8 {[%emt 0:05:51]} 20. Bf5 {[%emt 0:00:57]} Bxd4 {[%emt 0:01:16]} 21. Ba3+ {[%emt 0:11:04]} 1-0

[Event "LAT-ch 2020"]
[Site "Riga"]
[Date "2020.08.30"]
[Round "9.2"]
[White "Semjonovs, Ilja"]
[Black "Sveshnikov, Vladimir"]
[Result "1/2-1/2"]
[ECO "B15"]
[WhiteElo "2368"]
[BlackElo "2426"]
[Annotator "ChessBase"]
[PlyCount "102"]
[EventDate "2020.08.24"]
[EventType "swiss"]
[EventCountry "LAT"]
[SourceTitle "playchess.com"]
[Source "ChessBase"]
[SourceQuality "1"]
[TimeControl "5400+30"]

1. e4 {[%emt 0:00:00]} c6 {[%emt 0:00:00]} 2. d4 {[%emt 0:00:00]} d5 {[%emt 0:00:00]} 3. Nc3 {[%emt 0:00:00]} dxe4 {[%emt 0:00:00]} 4. Nxe4 {[%emt 0:00:00]} Nf6 {[%emt 0:00:00]} 5. Nxf6+ {[%emt 0:00:35]} exf6 {[%emt 0:00:00]} 6. Nf3 {[%emt 0:01:11]} Bd6 {[%emt 0:01:48]} 7. c3 {[%emt 0:12:27]} O-O {[%emt 0:02:08]} 8. Be3 {[%emt 0:01:24]} Re8 {[%emt 0:10:46]} 9. Be2 {[%emt 0:04:12]} Nd7 {[%emt 0:03:55]} 10. O-O {[%emt 0:08:47]} f5 {[%emt 0:02:27]} 11. Bd3 {[%emt 0:10:48]} Nf6 {[%emt 0:14:17]} 12. Bg5 {[%emt 0:01:17]} h6 {[%emt 0:00:26]} 13. Bxf6 {[%emt 0:00:05]} Qxf6 {[%emt 0:00:05]} 14. Bc4 {[%emt 0:03:02]} b5 {[%emt 0:08:08]} 15. Bb3 {[%emt 0:00:43]} Bb7 {[%emt 0:01:16]} 16. Re1 {[%emt 0:00:20]} c5 {[%emt 0:15:17]} 17. dxc5 {[%emt 0:08:16]} Bxc5 {[%emt 0:00:27]} 18. Qd7 {[%emt 0:02:33]} Bc6 {[%emt 0:26:10]} 19. Bxf7+ {[%emt 0:04:59]} Kh8 {[%emt 0:10:01]} 20. Bxe8 {[%emt 0:08:06]} Bxd7 {[%emt 0:00:10]} 21. Bxd7 {[%emt 0:01:47]} Rd8 {[%emt 0:00:29]} 22. Rad1 {[%emt 0:00:18]} b4 {[%emt 0:00:45]} 23. cxb4 {[%emt 0:05:41]} Bxb4 {[%emt 0:00:01]} 24. Re5 {[%emt 0:01:18]} Qa6 {[%emt 0:02:46]} 25. Red5 {[%emt 0:00:58]} g6 {[%emt 0:00:31]} 26. h4 {[%emt 0:05:32]} Be7 {[%emt 0:00:20]} 27. h5 {[%emt 0:00:40]} gxh5 {[%emt 0:00:02]} 28. Ne5 {[%emt 0:00:58]} Rf8 {[%emt 0:01:09]} 29. Bb5 {[%emt 0:03:45]} Qe6 {[%emt 0:00:27]} 30. Bc4 {[%emt 0:00:03]} Kg7 {[%emt 0:00:27]} 31. Rb5 {[%emt 0:02:07]} Qc8 {[%emt 0:00:15]} 32. Rd7 {[%emt 0:00:06]} Kf6 {[%emt 0:00:10]} 33. Rbb7 {[%emt 0:08:33]} Kxe5 {[%emt 0:00:27]} 34. Rxe7+ {[%emt 0:00:04]} Kd4 {[%emt 0:00:17]} 35. Rbd7+ {[%emt 0:00:53]} Kxc4 {[%emt 0:00:27]} 36. Rc7+ {[%emt 0:00:03]} Kd3 {[%emt 0:00:06]} 37. Rxc8 {[%emt 0:00:12]} Rxc8 {[%emt 0:00:02]} 38. Rxa7 {[%emt 0:00:06]} Rc1+ {[%emt 0:00:06]} 39. Kh2 {[%emt 0:00:04]} Rc2 {[%emt 0:00:13]} 40. b4 {[%emt 0:00:05]} Rxf2 {[%emt 0:00:17]} 41. Kg3 {[%emt 0:02:50]} Rb2 {[%emt 0:00:02]} 42. a3 {[%emt 0:00:24]} Ke4 {[%emt 0:01:04]} 43. Re7+ {[%emt 0:00:31]} Kd4 {[%emt 0:00:01]} 44. Ra7 {[%emt 0:05:00]} Ke4 {[%emt 0:01:08]} 45. Re7+ {[%emt 0:00:24]} Kd4 {[%emt 0:00:04]} 46. Re6 {[%emt 0:00:52]} Rb3+ {[%emt 0:02:20]} 47. Kf4 {[%emt 0:00:05]} Rxa3 {[%emt 0:00:05]} 48. Re2 {[%emt 0:00:44]} Kc4 {[%emt 0:01:45]} 49. Rb2 {[%emt 0:00:06]} Kb5 {[%emt 0:00:36]} 50. Kxf5 {[%emt 0:00:11]} Rg3 {[%emt 0:00:09]} 51. Kf4 {[%emt 0:00:06]} Rg4+ {[%emt 0:00:21]} 1/2-1/2

[Event "LAT-ch 2020"]
[Site "Riga"]
[Date "2020.08.30"]
[Round "9.3"]
[White "Kantans, Toms"]
[Black "Jankovskis, Guntis"]
[Result "1-0"]
[ECO "B15"]
[WhiteElo "2499"]
[BlackElo "2256"]
[Annotator "ChessBase"]
[PlyCount "77"]
[EventDate "2020.08.24"]
[EventType "swiss"]
[EventCountry "LAT"]
[SourceTitle "playchess.com"]
[Source "ChessBase"]
[SourceQuality "1"]
[TimeControl "5400+30"]

1. e4 {[%emt 0:05:00]} g6 {[%emt 0:00:00]} 2. d4 {[%emt 0:00:16]} Bg7 {[%emt 0:00:00]} 3. Nc3 {[%emt 0:00:20]} c6 {[%emt 0:00:00]} 4. Be3 {[%emt 0:02:00]} d5 {[%emt 0:01:00]} 5. Qd2 {[%emt 0:01:32]} a6 {[%emt 0:07:06]} 6. Nf3 {[%emt 0:04:32]} b5 {[%emt 0:19:24]} 7. exd5 {[%emt 0:15:42]} cxd5 {[%emt 0:00:08]} 8. a4 {[%emt 0:00:06]} b4 {[%emt 0:01:01]} 9. Na2 {[%emt 0:00:05]} a5 {[%emt 0:00:23]} 10. c3 {[%emt 0:02:48]} bxc3 {[%emt 0:01:26]} 11. Nxc3 {[%emt 0:02:30]} Nf6 {[%emt 0:00:15]} 12. Bb5+ {[%emt 0:00:04]} Bd7 {[%emt 0:02:15]} 13. Ne5 {[%emt 0:00:07]} O-O {[%emt 0:03:22]} 14. O-O {[%emt 0:00:05]} Bf5 {[%emt 0:05:35]} 15. Rfc1 {[%emt 0:03:26]} Ne4 {[%emt 0:11:04]} 16. Nxe4 {[%emt 0:00:18]} Bxe4 {[%emt 0:00:40]} 17. Ra3 {[%emt 0:04:22]} f6 {[%emt 0:01:43]} 18. Nd3 {[%emt 0:00:14]} Bxd3 {[%emt 0:01:26]} 19. Qxd3 {[%emt 0:00:14]} Qb6 {[%emt 0:04:43]} 20. Rac3 {[%emt 0:01:48]} f5 {[%emt 0:00:30]} 21. Rc5 {[%emt 0:02:54]} f4 {[%emt 0:04:07]} 22. Bd2 {[%emt 0:00:05]} e6 {[%emt 0:01:28]} 23. g3 {[%emt 0:08:10]} fxg3 {[%emt 0:01:00]} 24. hxg3 {[%emt 0:00:05]} Ra7 {[%emt 0:01:33]} 25. Be3 {[%emt 0:00:09]} Raf7 {[%emt 0:02:24]} 26. Qc3 {[%emt 0:01:30]} Qd6 {[%emt 0:03:16]} 27. Rc8 {[%emt 0:02:47]} e5 {[%emt 0:15:33]} 28. Rxf8+ {[%emt 0:01:01]} Rxf8 {[%emt 0:00:12]} 29. Qxa5 {[%emt 0:00:57]} exd4 {[%emt 0:00:47]} 30. Bf4 {[%emt 0:00:07]} Qe6 {[%emt 0:03:31]} 31. Re1 {[%emt 0:08:03]} Qf5 {[%emt 0:00:22]} 32. Qd2 {[%emt 0:02:53]} Nd7 {[%emt 0:02:04]} 33. Re7 {[%emt 0:00:25]} Ne5 {[%emt 0:00:48]} 34. Rxg7+ {[%emt 0:00:59]} Kxg7 {[%emt 0:00:06]} 35. Qxd4 {[%emt 0:00:06]} Kf6 {[%emt 0:00:29]} 36. Qxd5 {[%emt 0:00:58]} Qe6 {[%emt 0:01:21]} 37. Qe4 {[%emt 0:05:23]} Nf7 {[%emt 0:05:26]} 38. Qd4+ {[%emt 0:00:51]} Ne5 {[%emt 0:00:58]} 39. Bh6 {[%emt 0:03:24]} 1-0